[Event "Titled Tuesday Blitz March 28 Late 2023"]
[White "Spata, German"]
[Black "Kramnik, Vladimir"]
[WhiteFideId "113026"]
[BlackFideId "4101588"]
[WhiteElo "2238"]
[BlackElo "2712"]
[Result "0-1"]
[Round "05"]
[TimeControl "180+2"]
[Date "2023.03.28"]
[WhiteClock "0:00:01"]
[BlackClock "0:00:04"]

1. Nf3 {[%clk 0:02:53]}  c5 {[%clk 0:02:59]} 2. g3 {[%clk 0:02:48]}  g6 {[%clk 0:02:56]} 3. c4 {[%clk 0:02:48]}  Bg7 {[%clk 0:02:55]} 4. Bg2 {[%clk 0:02:48]}  Nc6 {[%clk 0:02:55]} 5. O-O {[%clk 0:02:47]}  e6 {[%clk 0:02:53]} 6. Nc3 {[%clk 0:02:44]}  Nge7 {[%clk 0:02:52]} 7. e3 {[%clk 0:02:41]}  O-O {[%clk 0:02:48]} 8. d4 {[%clk 0:02:41]}  d6 {[%clk 0:02:47]} 9. b3 {[%clk 0:02:33]}  cxd4 {[%clk 0:02:39]} 10. Nxd4 {[%clk 0:02:33]}  Nxd4 {[%clk 0:02:34]} 11. exd4 {[%clk 0:02:33]}  Nf5 {[%clk 0:02:33]} 12. Ne2 {[%clk 0:02:27]}  Rb8 {[%clk 0:02:33]} 13. Bb2 {[%clk 0:02:21]}  b5 {[%clk 0:02:33]} 14. cxb5 {[%clk 0:02:15]}  Rxb5 {[%clk 0:02:32]} 15. Rc1 {[%clk 0:02:10]}  Bb7 {[%clk 0:02:24]} 16. Bxb7 {[%clk 0:02:04]}  Rxb7 {[%clk 0:02:24]} 17. Qd2 {[%clk 0:02:01]}  d5 {[%clk 0:02:18]} 18. Rc6 {[%clk 0:01:50]}  h5 {[%clk 0:02:15]} 19. Nf4 {[%clk 0:01:13]}  Rc7 {[%clk 0:02:06]} 20. Rxc7 {[%clk 0:01:11]}  Qxc7 {[%clk 0:02:05]} 21. Rc1 {[%clk 0:01:12]}  Qb6 {[%clk 0:01:57]} 22. Ne2 {[%clk 0:00:56]}  Bh6 {[%clk 0:01:52]} 23. f4 {[%clk 0:00:56]}  Bg7 {[%clk 0:01:49]} 24. Kg2 {[%clk 0:00:55]}  a5 {[%clk 0:01:47]} 25. Ba3 {[%clk 0:00:52]}  Ra8 {[%clk 0:01:40]} 26. Bc5 {[%clk 0:00:52]}  Qd8 {[%clk 0:01:34]} 27. Ng1 {[%clk 0:00:52]}  Nd6 {[%clk 0:01:10]} 28. Bxd6 {[%clk 0:00:52]}  Qxd6 {[%clk 0:01:10]} 29. Nf3 {[%clk 0:00:52]}  Qb4 {[%clk 0:01:04]} 30. Qxb4 {[%clk 0:00:48]}  axb4 {[%clk 0:01:03]} 31. Rc2 {[%clk 0:00:48]}  f6 {[%clk 0:00:45]} 32. Kf2 {[%clk 0:00:48]}  Bf8 {[%clk 0:00:43]} 33. Ke3 {[%clk 0:00:47]}  Kf7 {[%clk 0:00:43]} 34. Kd3 {[%clk 0:00:48]}  Bd6 {[%clk 0:00:42]} 35. Re2 {[%clk 0:00:39]}  Ke7 {[%clk 0:00:40]} 36. Rc2 {[%clk 0:00:38]}  Kd7 {[%clk 0:00:39]} 37. Re2 {[%clk 0:00:38]}  Rg8 {[%clk 0:00:38]} 38. h4 {[%clk 0:00:29]}  Rc8 {[%clk 0:00:35]} 39. Rc2 {[%clk 0:00:29]}  Ra8 {[%clk 0:00:34]} 40. Re2 {[%clk 0:00:29]}  Bc7 {[%clk 0:00:34]} 41. Rc2 {[%clk 0:00:28]}  Bb6 {[%clk 0:00:34]} 42. Re2 {[%clk 0:00:28]}  Kd6 {[%clk 0:00:33]} 43. Rc2 {[%clk 0:00:28]}  Ra7 {[%clk 0:00:33]} 44. Re2 {[%clk 0:00:28]}  Ra8 {[%clk 0:00:25]} 45. Rc2 {[%clk 0:00:28]}  Rf8 {[%clk 0:00:24]} 46. Re2 {[%clk 0:00:28]}  Rc8 {[%clk 0:00:22]} 47. Rc2 {[%clk 0:00:28]}  Ra8 {[%clk 0:00:20]} 48. Re2 {[%clk 0:00:28]}  Bd8 {[%clk 0:00:19]} 49. Rc2 {[%clk 0:00:28]}  Be7 {[%clk 0:00:19]} 50. Re2 {[%clk 0:00:28]}  Rg8 {[%clk 0:00:18]} 51. Rh2 {[%clk 0:00:23]}  Rg7 {[%clk 0:00:18]} 52. Re2 {[%clk 0:00:19]}  g5 {[%clk 0:00:16]} 53. hxg5 {[%clk 0:00:19]}  fxg5 {[%clk 0:00:16]} 54. fxg5 {[%clk 0:00:19]}  Bxg5 {[%clk 0:00:16]} 55. Rg2 {[%clk 0:00:04]}  Bf4 {[%clk 0:00:15]} 56. Ne5 {[%clk 0:00:03]}  Bxe5 {[%clk 0:00:15]} 57. dxe5+ {[%clk 0:00:03]}  Kxe5 {[%clk 0:00:15]} 58. Ke3 {[%clk 0:00:03]}  d4+ {[%clk 0:00:13]} 59. Kf3 {[%clk 0:00:04]}  Rf7+ {[%clk 0:00:13]} 60. Ke2 {[%clk 0:00:04]}  Ke4 {[%clk 0:00:13]} 61. Rh2 {[%clk 0:00:04]}  e5 {[%clk 0:00:12]} 62. Rh4+ {[%clk 0:00:03]}  Kd5 {[%clk 0:00:12]} 63. Rxh5 {[%clk 0:00:04]}  Ra7 {[%clk 0:00:12]} 64. g4 {[%clk 0:00:03]}  Rxa2+ {[%clk 0:00:12]} 65. Kf3 {[%clk 0:00:04]}  Rb2 {[%clk 0:00:09]} 66. g5 {[%clk 0:00:04]}  Rxb3+ {[%clk 0:00:08]} 67. Kg4 {[%clk 0:00:05]}  Rb1 {[%clk 0:00:08]} 68. g6 {[%clk 0:00:01]}  Rg1+ {[%clk 0:00:07]} 69. Kf5 {[%clk 0:00:02]}  d3 {[%clk 0:00:07]} 70. Rg5 {[%clk 0:00:02]}  Rxg5+ {[%clk 0:00:04]} 71. Kxg5 {[%clk 0:00:03]}  d2 {[%clk 0:00:04]} 72. g7 {[%clk 0:00:03]}  d1=Q {[%clk 0:00:05]} 73. g8=Q+ {[%clk 0:00:04]}  Ke4 {[%clk 0:00:05]} 74. Qg6+ {[%clk 0:00:02]}  Ke3 {[%clk 0:00:04]} 75. Qb6+ {[%clk 0:00:01]}  Qd4 {[%clk 0:00:04]} 76. Qb5 {[%clk 0:00:01]}  Qf4+ {[%clk 0:00:03]} 77. Kg6 {[%clk 0:00:01]}  Qd4 {[%clk 0:00:04]} 78. Kf5 {[%clk 0:00:01]}  e4 {[%clk 0:00:04]} 0-1


[Site "https://www.chess.com"]

[Event "Titled Tuesday Blitz March 28 Late 2023"]
[White "Demchenko, Anton"]
[Black "Godzwon, Iwo"]
[WhiteFideId "4160258"]
[BlackFideId "21802483"]
[WhiteElo "2545"]
[BlackElo "2284"]
[Result "1/2-1/2"]
[Round "05"]
[TimeControl "180+2"]
[Date "2023.03.28"]
[WhiteClock "0:00:08"]
[BlackClock "0:00:06"]

1. e4 {[%clk 0:02:56]}  c5 {[%clk 0:02:58]} 2. Nf3 {[%clk 0:02:50]}  e6 {[%clk 0:02:58]} 3. d4 {[%clk 0:02:49]}  cxd4 {[%clk 0:02:59]} 4. Nxd4 {[%clk 0:02:50]}  Nc6 {[%clk 0:03:00]} 5. Nc3 {[%clk 0:02:48]}  Qc7 {[%clk 0:03:00]} 6. a3 {[%clk 0:02:47]}  Nf6 {[%clk 0:02:56]} 7. Be3 {[%clk 0:02:44]}  a6 {[%clk 0:02:56]} 8. f4 {[%clk 0:02:43]}  d6 {[%clk 0:02:13]} 9. Bd3 {[%clk 0:02:41]}  Nxd4 {[%clk 0:02:07]} 10. Bxd4 {[%clk 0:02:41]}  e5 {[%clk 0:02:08]} 11. Be3 {[%clk 0:02:36]}  exf4 {[%clk 0:02:08]} 12. Bxf4 {[%clk 0:02:36]}  Be6 {[%clk 0:02:08]} 13. Qd2 {[%clk 0:02:23]}  Be7 {[%clk 0:02:07]} 14. O-O-O {[%clk 0:02:16]}  O-O {[%clk 0:02:06]} 15. Rhg1 {[%clk 0:02:16]}  Nd7 {[%clk 0:01:53]} 16. g4 {[%clk 0:01:59]}  Ne5 {[%clk 0:01:53]} 17. Be2 {[%clk 0:01:57]}  Rac8 {[%clk 0:01:49]} 18. Kb1 {[%clk 0:01:53]}  Rfd8 {[%clk 0:01:48]} 19. g5 {[%clk 0:01:45]}  b5 {[%clk 0:01:45]} 20. h4 {[%clk 0:01:40]}  Nc4 {[%clk 0:01:41]} 21. Bxc4 {[%clk 0:01:40]}  Qxc4 {[%clk 0:01:42]} 22. Rg3 {[%clk 0:01:23]}  Bf8 {[%clk 0:01:15]} 23. h5 {[%clk 0:01:22]}  a5 {[%clk 0:01:11]} 24. b3 {[%clk 0:01:21]}  Qc5 {[%clk 0:01:10]} 25. h6 {[%clk 0:00:53]}  Qxa3 {[%clk 0:01:05]} 26. Nd5 {[%clk 0:00:44]}  Bxd5 {[%clk 0:00:52]} 27. exd5 {[%clk 0:00:40]}  Qc5 {[%clk 0:00:47]} 28. Be3 {[%clk 0:00:34]}  Qc3 {[%clk 0:00:43]} 29. Qf2 {[%clk 0:00:16]}  Qe5 {[%clk 0:00:23]} 30. Bd4 {[%clk 0:00:12]}  Qxd5 {[%clk 0:00:23]} 31. Rgd3 {[%clk 0:00:11]}  Qxg5 {[%clk 0:00:17]} 32. hxg7 {[%clk 0:00:10]}  Be7 {[%clk 0:00:17]} 33. Rh1 {[%clk 0:00:10]}  a4 {[%clk 0:00:15]} 34. Rxh7 {[%clk 0:00:07]}  Kxh7 {[%clk 0:00:13]} 35. Rh3+ {[%clk 0:00:07]}  Kg6 {[%clk 0:00:13]} 36. Rg3 {[%clk 0:00:08]}  f6 {[%clk 0:00:14]} 37. Rxg5+ {[%clk 0:00:08]}  Kxg5 {[%clk 0:00:14]} 38. Qg2+ {[%clk 0:00:08]}  Kh6 {[%clk 0:00:14]} 39. Qh2+ {[%clk 0:00:07]}  Kg6 {[%clk 0:00:14]} 40. Qe2 {[%clk 0:00:08]}  Kf7 {[%clk 0:00:14]} 41. Qxb5 {[%clk 0:00:08]}  axb3 {[%clk 0:00:14]} 42. Qxb3+ {[%clk 0:00:09]}  Kxg7 {[%clk 0:00:14]} 43. Qg3+ {[%clk 0:00:08]}  Kf7 {[%clk 0:00:15]} 44. Qh3 {[%clk 0:00:09]}  Rh8 {[%clk 0:00:15]} 45. Qb3+ {[%clk 0:00:08]}  Kg7 {[%clk 0:00:15]} 46. Qe6 {[%clk 0:00:09]}  Rce8 {[%clk 0:00:15]} 47. Kb2 {[%clk 0:00:07]}  Rhf8 {[%clk 0:00:15]} 48. Qf5 {[%clk 0:00:07]}  Kf7 {[%clk 0:00:12]} 49. c3 {[%clk 0:00:07]}  Rb8+ {[%clk 0:00:12]} 50. Kc2 {[%clk 0:00:07]}  Rg8 {[%clk 0:00:13]} 51. Qd5+ {[%clk 0:00:08]}  Kf8 {[%clk 0:00:10]} 52. Qe6 {[%clk 0:00:08]}  Rg6 {[%clk 0:00:09]} 53. Qh3 {[%clk 0:00:08]}  Kf7 {[%clk 0:00:06]} 54. Kd3 {[%clk 0:00:08]}  Rbg8 {[%clk 0:00:06]} 55. Qd7 {[%clk 0:00:08]}  Rd8 {[%clk 0:00:05]} 56. Qa4 {[%clk 0:00:08]}  Rdg8 {[%clk 0:00:04]} 57. Qa2+ {[%clk 0:00:08]}  Kf8 {[%clk 0:00:04]} 58. Qe6 {[%clk 0:00:08]}  Rg3+ {[%clk 0:00:04]} 59. Kc4 {[%clk 0:00:09]}  R3g6 {[%clk 0:00:05]} 60. Kd5 {[%clk 0:00:09]}  Rg5+ {[%clk 0:00:05]} 61. Kc6 {[%clk 0:00:09]}  R8g7 {[%clk 0:00:04]} 62. Bxf6 {[%clk 0:00:05]}  Bxf6 {[%clk 0:00:04]} 63. Qxf6+ {[%clk 0:00:06]}  Kg8 {[%clk 0:00:05]} 64. Qe6+ {[%clk 0:00:07]}  Kh7 {[%clk 0:00:05]} 65. Qh3+ {[%clk 0:00:07]}  Kg8 {[%clk 0:00:05]} 66. Qc8+ {[%clk 0:00:07]}  Kh7 {[%clk 0:00:05]} 67. Qh3+ {[%clk 0:00:07]}  Kg8 {[%clk 0:00:05]} 68. Qc8+ {[%clk 0:00:07]}  Kh7 {[%clk 0:00:06]} 69. Qh3+ {[%clk 0:00:08]} 1/2-1/2


[Site "https://www.chess.com"]

[Event "Titled Tuesday Blitz March 28 Late 2023"]
[White "Ashraf, Artin"]
[Black "Poliakova, Varvara"]
[WhiteFideId "22514805"]
[BlackFideId "13518313"]
[WhiteElo "2188"]
[BlackElo "2075"]
[Result "1-0"]
[Round "05"]
[TimeControl "180+2"]
[Date "2023.03.28"]
[WhiteClock "0:00:19"]
[BlackClock "0:00:07"]

1. Nf3 {[%clk 0:03:00]}  f5 {[%clk 0:02:57]} 2. g3 {[%clk 0:02:55]}  Nf6 {[%clk 0:02:56]} 3. Bg2 {[%clk 0:02:56]}  d6 {[%clk 0:02:54]} 4. O-O {[%clk 0:02:56]}  e5 {[%clk 0:02:54]} 5. d4 {[%clk 0:02:56]}  e4 {[%clk 0:02:51]} 6. Ne1 {[%clk 0:02:55]}  g6 {[%clk 0:02:48]} 7. Bg5 {[%clk 0:02:53]}  Bg7 {[%clk 0:02:48]} 8. Bxf6 {[%clk 0:02:53]}  Qxf6 {[%clk 0:02:47]} 9. e3 {[%clk 0:02:52]}  O-O {[%clk 0:02:45]} 10. c3 {[%clk 0:02:51]}  Be6 {[%clk 0:02:39]} 11. Nd2 {[%clk 0:02:50]}  d5 {[%clk 0:02:37]} 12. f3 {[%clk 0:02:48]}  exf3 {[%clk 0:02:23]} 13. Ndxf3 {[%clk 0:02:44]}  Nd7 {[%clk 0:02:22]} 14. Nd3 {[%clk 0:02:44]}  Qe7 {[%clk 0:02:18]} 15. Qb3 {[%clk 0:02:41]}  b6 {[%clk 0:02:14]} 16. Nf4 {[%clk 0:02:41]}  c6 {[%clk 0:02:12]} 17. Kh1 {[%clk 0:02:22]}  Nf6 {[%clk 0:02:12]} 18. Ne5 {[%clk 0:02:19]}  Rac8 {[%clk 0:02:07]} 19. a4 {[%clk 0:02:17]}  Ne4 {[%clk 0:02:05]} 20. Nf3 {[%clk 0:02:11]}  g5 {[%clk 0:02:00]} 21. Nxe6 {[%clk 0:02:10]}  Qxe6 {[%clk 0:02:01]} 22. Rad1 {[%clk 0:02:05]}  h6 {[%clk 0:02:00]} 23. Qc2 {[%clk 0:02:01]}  Rf7 {[%clk 0:01:58]} 24. Ne1 {[%clk 0:02:00]}  Rcf8 {[%clk 0:01:56]} 25. Nd3 {[%clk 0:02:00]}  h5 {[%clk 0:01:50]} 26. Qe2 {[%clk 0:01:53]}  h4 {[%clk 0:01:48]} 27. gxh4 {[%clk 0:01:51]}  Qh6 {[%clk 0:01:33]} 28. Qe1 {[%clk 0:01:36]}  gxh4 {[%clk 0:00:46]} 29. Nf4 {[%clk 0:01:32]}  Bf6 {[%clk 0:00:38]} 30. Bf3 {[%clk 0:01:30]}  Ng3+ {[%clk 0:00:36]} 31. hxg3 {[%clk 0:01:25]}  hxg3+ {[%clk 0:00:37]} 32. Nh5 {[%clk 0:01:25]}  Bh4 {[%clk 0:00:32]} 33. Kg2 {[%clk 0:01:22]}  Qg5 {[%clk 0:00:32]} 34. Rh1 {[%clk 0:01:18]}  Re8 {[%clk 0:00:32]} 35. Rd3 {[%clk 0:00:51]}  Rfe7 {[%clk 0:00:31]} 36. Rxh4 {[%clk 0:00:40]}  Qxh4 {[%clk 0:00:28]} 37. Qxg3+ {[%clk 0:00:39]}  Qxg3+ {[%clk 0:00:28]} 38. Nxg3 {[%clk 0:00:40]}  Rxe3 {[%clk 0:00:24]} 39. Rxe3 {[%clk 0:00:41]}  Rxe3 {[%clk 0:00:25]} 40. Nxf5 {[%clk 0:00:41]}  Re1 {[%clk 0:00:25]} 41. Kf2 {[%clk 0:00:39]}  Rb1 {[%clk 0:00:25]} 42. Ne7+ {[%clk 0:00:39]}  Kf7 {[%clk 0:00:25]} 43. Nxc6 {[%clk 0:00:39]}  Rxb2+ {[%clk 0:00:25]} 44. Ke3 {[%clk 0:00:40]}  Ke6 {[%clk 0:00:22]} 45. Nxa7 {[%clk 0:00:39]}  Ra2 {[%clk 0:00:17]} 46. Bd1 {[%clk 0:00:33]}  Kd6 {[%clk 0:00:14]} 47. Nb5+ {[%clk 0:00:34]}  Kc6 {[%clk 0:00:14]} 48. Kd3 {[%clk 0:00:31]}  Ra1 {[%clk 0:00:13]} 49. Bc2 {[%clk 0:00:31]}  Rh1 {[%clk 0:00:13]} 50. Kd2 {[%clk 0:00:32]}  Rh2+ {[%clk 0:00:12]} 51. Kc1 {[%clk 0:00:32]}  Rh1+ {[%clk 0:00:11]} 52. Kb2 {[%clk 0:00:32]}  Rh2 {[%clk 0:00:12]} 53. Kb3 {[%clk 0:00:32]}  Rh1 {[%clk 0:00:12]} 54. Na3 {[%clk 0:00:33]}  Rh3 {[%clk 0:00:11]} 55. Kb2 {[%clk 0:00:32]}  Rg3 {[%clk 0:00:11]} 56. Bf5 {[%clk 0:00:30]}  Rf3 {[%clk 0:00:11]} 57. Bg6 {[%clk 0:00:28]}  Rg3 {[%clk 0:00:11]} 58. Be8+ {[%clk 0:00:29]}  Kd6 {[%clk 0:00:11]} 59. Nb5+ {[%clk 0:00:25]}  Ke6 {[%clk 0:00:09]} 60. Bc6 {[%clk 0:00:25]}  Rg2+ {[%clk 0:00:08]} 61. Kb3 {[%clk 0:00:25]}  Rg5 {[%clk 0:00:08]} 62. Bb7 {[%clk 0:00:23]}  Kd7 {[%clk 0:00:06]} 63. Na3 {[%clk 0:00:22]}  Kd6 {[%clk 0:00:06]} 64. Ba6 {[%clk 0:00:21]}  Rg3 {[%clk 0:00:06]} 65. Be2 {[%clk 0:00:19]}  Re3 {[%clk 0:00:06]} 66. Bf1 {[%clk 0:00:20]}  Kc6 {[%clk 0:00:06]} 67. Nc2 {[%clk 0:00:20]}  Rg3 {[%clk 0:00:06]} 68. Be2 {[%clk 0:00:19]}  Rh3 {[%clk 0:00:06]} 69. Bg4 {[%clk 0:00:19]}  Rg3 {[%clk 0:00:06]} 70. Bh5 {[%clk 0:00:19]}  Kd6 {[%clk 0:00:07]} 71. Nb4 {[%clk 0:00:17]}  Rh3 {[%clk 0:00:07]} 72. Bf7 {[%clk 0:00:18]}  Rf3 {[%clk 0:00:06]} 73. Bxd5 {[%clk 0:00:18]}  Rh3 {[%clk 0:00:06]} 74. Bc4 {[%clk 0:00:18]}  Rg3 {[%clk 0:00:07]} 75. Bb5 {[%clk 0:00:19]}  Rh3 {[%clk 0:00:07]} 76. Nd3 {[%clk 0:00:19]}  Rg3 {[%clk 0:00:07]} 77. Nb2 {[%clk 0:00:19]}  Re3 {[%clk 0:00:07]} 78. Nc4+ {[%clk 0:00:19]} 1-0


[Site "https://www.chess.com"]

[Event "Titled Tuesday Blitz March 28 Late 2023"]
[White "Holt, Conrad"]
[Black "Rastbod, Ali"]
[WhiteFideId "2034387"]
[BlackFideId "12567477"]
[WhiteElo "2592"]
[BlackElo "2211"]
[Result "1/2-1/2"]
[Round "05"]
[TimeControl "180+2"]
[Date "2023.03.28"]
[WhiteClock "0:00:07"]
[BlackClock "0:00:08"]

1. d4 {[%clk 0:03:00]}  d5 {[%clk 0:02:56]} 2. c4 {[%clk 0:03:01]}  e6 {[%clk 0:02:56]} 3. Nc3 {[%clk 0:03:01]}  Bb4 {[%clk 0:02:57]} 4. a3 {[%clk 0:02:55]}  Bxc3+ {[%clk 0:02:56]} 5. bxc3 {[%clk 0:02:56]}  c6 {[%clk 0:02:53]} 6. e4 {[%clk 0:02:47]}  Ne7 {[%clk 0:02:44]} 7. Bd3 {[%clk 0:02:42]}  dxc4 {[%clk 0:02:38]} 8. Bxc4 {[%clk 0:02:42]}  b6 {[%clk 0:02:38]} 9. Nf3 {[%clk 0:02:33]}  Ba6 {[%clk 0:02:38]} 10. Bxa6 {[%clk 0:02:32]}  Nxa6 {[%clk 0:02:39]} 11. O-O {[%clk 0:02:30]}  O-O {[%clk 0:02:36]} 12. Bg5 {[%clk 0:02:26]}  Re8 {[%clk 0:02:33]} 13. Qa4 {[%clk 0:02:22]}  Qc8 {[%clk 0:02:29]} 14. c4 {[%clk 0:02:19]}  Ng6 {[%clk 0:02:22]} 15. Rfd1 {[%clk 0:02:16]}  e5 {[%clk 0:02:08]} 16. d5 {[%clk 0:02:12]}  Nc5 {[%clk 0:01:59]} 17. Qc2 {[%clk 0:02:12]}  cxd5 {[%clk 0:01:50]} 18. cxd5 {[%clk 0:02:12]}  Qd7 {[%clk 0:01:46]} 19. d6 {[%clk 0:01:55]}  Rac8 {[%clk 0:01:41]} 20. Rd5 {[%clk 0:01:55]}  Nb7 {[%clk 0:01:22]} 21. Qd1 {[%clk 0:01:47]}  Rc6 {[%clk 0:01:22]} 22. Be7 {[%clk 0:01:29]}  f6 {[%clk 0:01:06]} 23. h4 {[%clk 0:01:10]}  Nf4 {[%clk 0:00:33]} 24. h5 {[%clk 0:00:36]}  Nc5 {[%clk 0:00:32]} 25. g3 {[%clk 0:00:21]}  Nxd5 {[%clk 0:00:26]} 26. Qxd5+ {[%clk 0:00:20]}  Ne6 {[%clk 0:00:22]} 27. h6 {[%clk 0:00:18]}  Rc5 {[%clk 0:00:21]} 28. Qb3 {[%clk 0:00:17]}  Rxe7 {[%clk 0:00:20]} 29. dxe7 {[%clk 0:00:17]}  Qxe7 {[%clk 0:00:21]} 30. hxg7 {[%clk 0:00:15]}  Kxg7 {[%clk 0:00:22]} 31. Rd1 {[%clk 0:00:15]}  Rc7 {[%clk 0:00:20]} 32. Nh4 {[%clk 0:00:14]}  Kh8 {[%clk 0:00:15]} 33. Nf5 {[%clk 0:00:14]}  Qe8 {[%clk 0:00:14]} 34. Kg2 {[%clk 0:00:13]}  Rd7 {[%clk 0:00:11]} 35. Qa4 {[%clk 0:00:07]}  Nc5 {[%clk 0:00:11]} 36. Qc2 {[%clk 0:00:06]}  Rxd1 {[%clk 0:00:11]} 37. Qxd1 {[%clk 0:00:07]}  Nxe4 {[%clk 0:00:11]} 38. Qd5 {[%clk 0:00:07]}  Ng5 {[%clk 0:00:10]} 39. Qb7 {[%clk 0:00:07]}  Qf8 {[%clk 0:00:09]} 40. Qxa7 {[%clk 0:00:07]}  b5 {[%clk 0:00:07]} 41. Qb7 {[%clk 0:00:07]}  Ne6 {[%clk 0:00:07]} 42. Qxb5 {[%clk 0:00:07]}  Ng7 {[%clk 0:00:07]} 43. Nxg7 {[%clk 0:00:07]}  Kxg7 {[%clk 0:00:07]} 44. a4 {[%clk 0:00:07]}  Qa8+ {[%clk 0:00:07]} 45. Kg1 {[%clk 0:00:08]}  Qf3 {[%clk 0:00:07]} 46. a5 {[%clk 0:00:08]}  Qd1+ {[%clk 0:00:07]} 47. Kg2 {[%clk 0:00:07]}  e4 {[%clk 0:00:07]} 48. a6 {[%clk 0:00:07]}  Qf3+ {[%clk 0:00:07]} 49. Kg1 {[%clk 0:00:08]}  Qd1+ {[%clk 0:00:07]} 50. Kh2 {[%clk 0:00:08]}  Qc2 {[%clk 0:00:07]} 51. Kg1 {[%clk 0:00:06]}  Qd1+ {[%clk 0:00:07]} 52. Kg2 {[%clk 0:00:07]}  Qf3+ {[%clk 0:00:07]} 53. Kf1 {[%clk 0:00:07]}  Qd1+ {[%clk 0:00:08]} 54. Kg2 {[%clk 0:00:07]} 1/2-1/2


[Site "https://www.chess.com"]

[Event "Titled Tuesday Blitz March 28 Late 2023"]
[White "Adan Bermudez, Sergio"]
[Black "Veiga, Jose Francisco R P Neves"]
[WhiteFideId "2292726"]
[BlackFideId "1930087"]
[WhiteElo "2292"]
[BlackElo "2320"]
[Result "1/2-1/2"]
[Round "05"]
[TimeControl "180+2"]
[Date "2023.03.28"]
[WhiteClock "0:00:22"]
[BlackClock "0:00:08"]

1. c4 {[%clk 0:02:57]}  Nf6 {[%clk 0:02:48]} 2. Nc3 {[%clk 0:02:57]}  d5 {[%clk 0:02:48]} 3. cxd5 {[%clk 0:02:56]}  Nxd5 {[%clk 0:02:49]} 4. g3 {[%clk 0:02:57]}  e5 {[%clk 0:02:49]} 5. Bg2 {[%clk 0:02:56]}  Nb6 {[%clk 0:02:50]} 6. d3 {[%clk 0:02:54]}  Be7 {[%clk 0:02:50]} 7. Be3 {[%clk 0:02:52]}  O-O {[%clk 0:02:50]} 8. a4 {[%clk 0:02:51]}  a5 {[%clk 0:02:40]} 9. Bxb6 {[%clk 0:02:46]}  cxb6 {[%clk 0:02:41]} 10. Nf3 {[%clk 0:02:46]}  Nc6 {[%clk 0:02:41]} 11. O-O {[%clk 0:02:47]}  Be6 {[%clk 0:02:40]} 12. Nb5 {[%clk 0:02:40]}  Re8 {[%clk 0:02:37]} 13. Rc1 {[%clk 0:02:37]}  Bc5 {[%clk 0:02:37]} 14. Nxe5 {[%clk 0:02:30]}  Nxe5 {[%clk 0:02:05]} 15. d4 {[%clk 0:02:31]}  Nd7 {[%clk 0:02:06]} 16. dxc5 {[%clk 0:02:25]}  Nxc5 {[%clk 0:02:07]} 17. Nd6 {[%clk 0:01:58]}  Re7 {[%clk 0:01:55]} 18. e4 {[%clk 0:01:58]}  Bb3 {[%clk 0:01:46]} 19. Qd4 {[%clk 0:01:39]}  Bxa4 {[%clk 0:01:41]} 20. e5 {[%clk 0:01:27]}  Bc6 {[%clk 0:01:40]} 21. Bxc6 {[%clk 0:01:22]}  bxc6 {[%clk 0:01:41]} 22. Rcd1 {[%clk 0:01:11]}  Qc7 {[%clk 0:01:22]} 23. Rfe1 {[%clk 0:01:00]}  Rd8 {[%clk 0:01:15]} 24. Qh4 {[%clk 0:00:50]}  g6 {[%clk 0:01:03]} 25. Qg5 {[%clk 0:00:39]}  Nb7 {[%clk 0:00:43]} 26. Nf5 {[%clk 0:00:29]}  Ree8 {[%clk 0:00:14]} 27. Nh6+ {[%clk 0:00:28]}  Kf8 {[%clk 0:00:12]} 28. Qf6 {[%clk 0:00:25]}  Rxd1 {[%clk 0:00:11]} 29. Qh8+ {[%clk 0:00:24]}  Ke7 {[%clk 0:00:10]} 30. Qf6+ {[%clk 0:00:25]}  Kf8 {[%clk 0:00:10]} 31. Qh8+ {[%clk 0:00:22]}  Ke7 {[%clk 0:00:10]} 32. Qf6+ {[%clk 0:00:22]}  Kf8 {[%clk 0:00:08]} 1/2-1/2


[Site "https://www.chess.com"]

[Event "Titled Tuesday Blitz March 28 Late 2023"]
[White "Urbina Perez, Juan Antonio"]
[Black "Koksal, Ege"]
[WhiteFideId "2217368"]
[BlackFideId "6317626"]
[WhiteElo "2197"]
[BlackElo "2226"]
[Result "0-1"]
[Round "05"]
[TimeControl "180+2"]
[Date "2023.03.28"]
[WhiteClock "0:00:27"]
[BlackClock "0:00:15"]

1. c4 {[%clk 0:02:53]}  Nf6 {[%clk 0:02:56]} 2. g3 {[%clk 0:02:51]}  c6 {[%clk 0:02:53]} 3. Bg2 {[%clk 0:02:51]}  d5 {[%clk 0:02:54]} 4. Qc2 {[%clk 0:02:50]}  d4 {[%clk 0:02:49]} 5. Nf3 {[%clk 0:02:46]}  c5 {[%clk 0:02:42]} 6. O-O {[%clk 0:02:45]}  Nc6 {[%clk 0:02:42]} 7. a3 {[%clk 0:02:44]}  a5 {[%clk 0:02:37]} 8. d3 {[%clk 0:02:36]}  e5 {[%clk 0:02:37]} 9. Nbd2 {[%clk 0:02:33]}  Bd6 {[%clk 0:02:31]} 10. Ne4 {[%clk 0:02:32]}  Nxe4 {[%clk 0:02:31]} 11. dxe4 {[%clk 0:02:33]}  O-O {[%clk 0:02:31]} 12. Bd2 {[%clk 0:02:34]}  a4 {[%clk 0:02:30]} 13. Ne1 {[%clk 0:02:33]}  Be6 {[%clk 0:02:30]} 14. Nd3 {[%clk 0:02:24]}  Qd7 {[%clk 0:02:10]} 15. b4 {[%clk 0:02:19]}  axb3 {[%clk 0:02:10]} 16. Qxb3 {[%clk 0:02:19]}  Rfb8 {[%clk 0:02:05]} 17. Qb5 {[%clk 0:02:13]}  Qe7 {[%clk 0:01:57]} 18. f4 {[%clk 0:02:11]}  Na7 {[%clk 0:01:53]} 19. Qb6 {[%clk 0:02:06]}  Nc8 {[%clk 0:01:48]} 20. Qb5 {[%clk 0:02:03]}  Bd7 {[%clk 0:01:36]} 21. Qb1 {[%clk 0:01:51]}  b5 {[%clk 0:01:15]} 22. fxe5 {[%clk 0:01:46]}  Bc7 {[%clk 0:01:15]} 23. cxb5 {[%clk 0:01:38]}  Bxb5 {[%clk 0:01:15]} 24. Qc1 {[%clk 0:01:34]}  c4 {[%clk 0:01:12]} 25. Nf4 {[%clk 0:01:34]}  Bxe5 {[%clk 0:01:11]} 26. Nd5 {[%clk 0:01:33]}  Qd6 {[%clk 0:01:08]} 27. Bb4 {[%clk 0:01:29]}  Qe6 {[%clk 0:00:56]} 28. Qg5 {[%clk 0:01:21]}  Nd6 {[%clk 0:00:40]} 29. Nc7 {[%clk 0:01:12]}  f6 {[%clk 0:00:32]} 30. Qc1 {[%clk 0:00:59]}  Qd7 {[%clk 0:00:32]} 31. Nxa8 {[%clk 0:00:50]}  Rxa8 {[%clk 0:00:33]} 32. a4 {[%clk 0:00:44]}  Ba6 {[%clk 0:00:33]} 33. Qa3 {[%clk 0:00:42]}  c3 {[%clk 0:00:32]} 34. Bxd6 {[%clk 0:00:39]}  Bxd6 {[%clk 0:00:32]} 35. Qb3+ {[%clk 0:00:39]}  Kf8 {[%clk 0:00:28]} 36. Qd5 {[%clk 0:00:39]}  Rc8 {[%clk 0:00:21]} 37. Qxd4 {[%clk 0:00:38]}  Bc5 {[%clk 0:00:21]} 38. Qxc5+ {[%clk 0:00:34]}  Rxc5 {[%clk 0:00:22]} 39. Rac1 {[%clk 0:00:34]}  Bxe2 {[%clk 0:00:21]} 40. Rf2 {[%clk 0:00:33]}  c2 {[%clk 0:00:20]} 41. Rxe2 {[%clk 0:00:30]}  Qd1+ {[%clk 0:00:20]} 42. Re1 {[%clk 0:00:31]}  Qxe1+ {[%clk 0:00:18]} 43. Rxe1 {[%clk 0:00:32]}  c1=Q {[%clk 0:00:19]} 44. Rxc1 {[%clk 0:00:33]}  Rxc1+ {[%clk 0:00:19]} 45. Kf2 {[%clk 0:00:33]}  Ra1 {[%clk 0:00:19]} 46. e5 {[%clk 0:00:34]}  Ra2+ {[%clk 0:00:17]} 47. Kf1 {[%clk 0:00:33]}  fxe5 {[%clk 0:00:16]} 48. Bc6 {[%clk 0:00:32]}  Rxh2 {[%clk 0:00:16]} 49. Bd5 {[%clk 0:00:31]}  Rd2 {[%clk 0:00:15]} 50. Bc4 {[%clk 0:00:29]}  Rc2 {[%clk 0:00:14]} 51. Bb5 {[%clk 0:00:28]}  Ra2 {[%clk 0:00:14]} 52. Ke1 {[%clk 0:00:28]}  Ke7 {[%clk 0:00:15]} 53. Kf1 {[%clk 0:00:28]}  Kf6 {[%clk 0:00:15]} 54. Ke1 {[%clk 0:00:26]}  Kg5 {[%clk 0:00:16]} 55. Bc4 {[%clk 0:00:27]}  Rxa4 {[%clk 0:00:15]} 56. Bg8 {[%clk 0:00:28]}  h6 {[%clk 0:00:15]} 57. Bd5 {[%clk 0:00:27]}  Rb4 {[%clk 0:00:15]} 0-1


[Site "https://www.chess.com"]